[Event "34th GER-ch Seniors-50 2022"]
[Site "Magdeburg"]
[Date "2022.08.18"]
[Round "7.8"]
[White "Ratzmann, Immo"]
[Black "Pitschka, Claus"]
[Result "1/2-1/2"]
[ECO "A44"]
[WhiteElo "2064"]
[BlackElo "2188"]
[Annotator "TA"]
[PlyCount "67"]
[EventDate "2022.08.12"]
[EventType "swiss"]
[EventCountry "GER"]
[SourceTitle "playchess.com"]
[Source "ChessBase"]
[SourceQuality "1"]
[TimeControl "40/5400+30:1800+30"]

{[%evp 10,67,81,67,83,64,70,68,73,36,54,68,55,34,67,43,34,47,38,25,25,14,41,7,21,0,45,15,38,14,55,47,58,15,14,0,14,0,27,0,27,7,27,27,27,27,86,76,88,87,50,50,99,87,106,0,0,0,0,0]} 1. d4 {[%emt 0:00:30] ChessBase} c5 {[%emt 0:08:58]} 2. d5 {[%emt 0:00:06]} d6 {[%emt 0:00:09]} 3. c4 {[%emt 0:00:11]} e5 {[%emt 0:00:08]} 4. e4 {[%emt 0:00:11]} Be7 {[%emt 0:00:06]} 5. Nf3 {[%emt 0:00:03]} Bg4 {[%emt 0:01:03]} 6. Nbd2 {[%emt 0:00:08]} Na6 {[%emt 0:04:47] A44: Semi-Benoni.} 7. Be2 {[%emt 0:05:30][%cal Of3e5] [#] Black must now prevent Nxe5!} Nc7 $146 {[%emt 0:01:46]} ({Predecessor:} 7... Nf6 8. a3 O-O 9. O-O g6 10. Ne1 Bd7 11. Nd3 Ne8 12. b4 Rc8 13. Bb2 Bf6 14. Qb3 {1-0 (57) Kasparov,G (2595)-Torre,E (2520) Baku 1980 EXT 2000 [ChessBase]}) 8. O-O {[%emt 0:09:23]} Bd7 {[%emt 0:09:09] White is slightly better.} 9. a4 {[%emt 0:05:32]} f5 {[%emt 0:02:48]} 10. exf5 {[%emt 0:02:07]} Bxf5 {[%emt 0:00:15]} 11. Ne1 {[%emt 0:08:02]} Bg5 {[%emt 0:06:22]} 12. Bg4 {[%emt 0:02:32]} Nh6 {[%emt 0:03:56]} 13. Bxf5 {[%emt 0:10:10]} Nxf5 {[%emt 0:00:14]} 14. Ne4 {[%emt 0:04:02]} Bxc1 {[%emt 0:00:40]} 15. Rxc1 {[%emt 0:00:02]} O-O {[%emt 0:00:42]} (15... Qh4 {is interesting.} 16. Qe2 Nd4 17. Qe3 Nf5) 16. Nf3 {[%emt 0:05:12]} b6 {[%emt 0:07:26]} 17. Qd2 {[%emt 0:03:55]} (17. a5 $5) 17... a6 {[%emt 0:02:41]} 18. Ra1 {[%emt 0:04:14]} Qd7 {[%emt 0:02:45]} 19. b3 {[%emt 0:00:35]} b5 {[%emt 0:01:09]} 20. axb5 {[%emt 0:01:55]} axb5 {[%emt 0:00:12]} 21. Rxa8 {[%emt 0:05:14]} Rxa8 {[%emt 0:00:08]} 22. Qb2 {[%emt 0:00:15]} h6 {[%emt 0:03:30]} 23. Ra1 {[%emt 0:00:18]} Ra6 {[%emt 0:01:04]} 24. Ra2 {[%emt 0:04:00]} Qc8 {[%emt 0:07:21]} 25. Qa1 {[%emt 0:00:53] Strongly threatening Rxa6.} (25. h3 $5 {[%cal Ra2a6]}) 25... bxc4 {[%emt 0:03:20]} 26. Rxa6 {[%emt 0:02:12]} Nxa6 {[%emt 0:00:27]} 27. bxc4 {[%emt 0:00:03]} Nb4 {[%emt 0:02:27]} (27... Nc7 $11 {keeps the balance.}) 28. h3 {[%emt 0:03:11]} Qd8 {[%emt 0:08:28]} 29. Qa7 {[%emt 0:06:04]} Nc2 {[%emt 0:04:30]} 30. Qa6 {[%emt 0:02:17][%cal Oe4c5]} Ncd4 {[%emt 0:01:55]} (30... Nb4 $14 31. Qa3 Nc2) 31. Nxd4 $16 {[%emt 0:01:10]} exd4 {[%emt 0:01:30] [#]} 32. g4 {[%emt 0:01:26] White is more active.} (32. Nxc5 $1 $16 {[%mdl 512] Ne6 is the strong threat.} Qg5 (32... Qb8 33. Qb7) 33. Nd3) 32... Qe8 $11 {[%emt 0:01:38]} 33. gxf5 {[%emt 0:01:44]} ({Avoid the trap} 33. Nxd6 $2 Nxd6 34. Qa3 Qe4 35. Qxc5 {[#]} d3 $1 36. Qxd6 d2 37. Qb8+ Kh7 $19) 33... Qxe4 {[%emt 0:00:28]} 34. Qc8+ $1 {[%emt 0:00:13] Weighted Error Value: White=0.17 (very precise) /Black=0.18 (very precise)} ({Wrong is} 34. Qxd6 $2 d3 35. Qb8+ (35. Qxc5 {leads to mate.} d2 36. Qc8+ Kh7 37. Kh2 d1=Q) 35... Kh7 $19) 1/2-1/2

[Event "34th GER-ch Seniors-50 2022"]
[Site "Magdeburg"]
[Date "2022.08.19"]
[Round "8.1"]
[White "Zude, Arno"]
[Black "De Roda Husman, Juan"]
[Result "1/2-1/2"]
[ECO "B42"]
[WhiteElo "2371"]
[BlackElo "2266"]
[Annotator "TA"]
[PlyCount "104"]
[EventDate "2022.08.12"]
[EventType "swiss"]
[EventCountry "GER"]
[SourceTitle "playchess.com"]
[Source "ChessBase"]
[SourceQuality "1"]
[TimeControl "40/5400+30:1800+30"]

{[%evp 13,104,28,34,21,19,15,12,12,16,34,17,20,31,23,62,52,135,46,117,60,99,95,108,94,107,114,98,119,132,137,149,126,160,172,227,227,237,146,240,200,236,247,247,245,349,272,289,263,269,270,347,233,237,232,243,149,319,162,172,166,172,136,130,-294,-304,-271,-260,-272,-261,-466,-487,-469,-332,-388,-378,-397,-395,-329,-317,-518,-514,-494,-479,-858,-870,-850,-841,-510,-196,-201,-165,-176,-145]} 1. e4 {[%emt 0:00:03] Sagar Shah} c5 {[%emt 0:00:10]} 2. Nf3 {[%emt 0:00:09]} e6 {[%emt 0:00:14]} 3. d4 {[%emt 0:00:08]} cxd4 {[%emt 0:00:11]} 4. Nxd4 {[%emt 0:00:09]} a6 {[%emt 0:00:17]} 5. Bd3 {[%emt 0:00:14]} g6 {[%emt 0:00:21]} 6. O-O {[%emt 0:02:54]} Bg7 {[%emt 0:00:24]} 7. Nb3 {[%emt 0:01:00]} Ne7 {[%emt 0:02:45]} 8. c4 {[%emt 0:04:19] B42: Sicilian: Kan Variation: 5 Bd3.} O-O {[%emt 0:05:54]} 9. Nc3 {[%emt 0:02:14]} Nbc6 {[%emt 0:00:58]} 10. Bg5 {[%emt 0:05:23] The position is equal.} h6 {[%emt 0:04:06]} 11. Bh4 {[%emt 0:05:56]} g5 {[%emt 0:02:22]} 12. Bg3 {[%emt 0:01:47]} Ne5 {[%emt 0:00:17]} 13. Be2 {[%emt 0:06:09] [#]} d6 $146 {[%emt 0:22:30]} ({Predecessor:} 13... N7g6 14. Qd2 b6 15. f3 Bb7 16. Bf2 Nf4 17. Na4 Nxe2+ 18. Qxe2 Nxc4 19. Qxc4 b5 {0-1 (38) Jakovenko,D (2759)-Artemiev,V (2671) Chita 2015 CBM 168 [Sagar Shah]}) 14. Qd2 {[%emt 0:15:24]} Qc7 {[%emt 0:05:29] [#]} (14... N7g6 $14) 15. Rac1 {[%emt 0:01:34]} ({Better is} 15. f4 $1 $16 {[%cal Rf4e5]} gxf4 16. Bxf4) 15... b6 {[%emt 0:08:36]} (15... N7g6 $14) 16. Rfd1 {[%emt 0:02:57]} ({White should try} 16. Rcd1 $16) 16... Rd8 {[%emt 0:01:54]} 17. h4 {[%emt 0:02:07]} gxh4 {[%emt 0:06:56]} 18. Bxh4 {[%emt 0:01:02]} (18. Bxe5 $6 Bxe5 19. Qxh6 Ng6 $11) 18... Bb7 {[%emt 0:06:27]} 19. f3 {[%emt 0:01:40]} Rab8 {[%emt 0:11:39]} 20. Bf2 {[%emt 0:07:14]} Ba8 {[%emt 0:02:15]} 21. Nd4 {[%emt 0:06:36]} N5g6 {[%emt 0:02:53]} (21... Nxc4 $2 22. Bxc4 Qxc4 {[#]} 23. Nd5 $1 {[%mdl 512]} Bxd5 24. Rxc4 Bxc4 25. Bh4 $18) 22. Be3 {[%emt 0:06:42] White is more active.} Kh7 {[%emt 0:00:40]} 23. Kf2 {[%emt 0:03:58]} Ng8 {[%emt 0:00:17]} (23... h5 {was worth a try.} 24. f4 Bxd4) 24. Rh1 $18 {[%emt 0:05:23]} Qe7 {[%emt 0:00:10]} 25. Rh5 {[%emt 0:01:36]} Qf6 {[%emt 0:01:11]} (25... Nf6 $16) 26. Nc2 {[%emt 0:02:37]} Ne5 {[%emt 0:01:12]} 27. Bg5 {[%emt 0:03:15]} Qg6 {[%emt 0:01:53]} 28. Rch1 {[%emt 0:00:21]} f6 {[%emt 0:03:16]} (28... b5 $142 29. Bxd8 Rxd8 30. cxb5 axb5) 29. Bf4 {[%emt 0:00:25]} Rbc8 {[%emt 0:01:32]} 30. Ne3 {[%emt 0:00:36] Inhibits d5.} Rc5 {[%emt 0:00:23][%cal Oe5d3]} 31. R5h3 {[%emt 0:00:25]} b5 {[%emt 0:00:39]} 32. b4 {[%emt 0:04:56]} Rcc8 {[%emt 0:00:43]} 33. cxb5 {[%emt 0:01:45] Really sharp!} axb5 {[%emt 0:00:43]} 34. Rd1 {[%emt 0:02:30]} Nc4 $2 {[%emt 0:01:26]} (34... Qf7 $16 {is a better defense.} 35. Nxb5 (35. Bxb5 f5 $14) 35... d5 36. exd5 Bxd5) 35. Nxc4 {[%emt 0:01:31]} (35. Bxc4 $142 bxc4 36. Rg3 (36. Bxd6 Bf8 $18)) 35... bxc4 {[%emt 0:00:06]} 36. Be3 {[%emt 0:01:07]} d5 {[%emt 0:00:49][%cal Od5d4]} 37. exd5 {[%emt 0:00:04]} (37. Rg3 $6 Qf7 $16) 37... Bxd5 {[%emt 0:00:40]} 38. Bb6 $2 {[%emt 0:00:23][%mdl 8192] [#]} (38. Qc1 $16 {and life is bright.}) 38... Bxf3 $1 $19 {[%emt 0:00:27][%mdl 512]} 39. Bxd8 {[%emt 0:01:48]} Qxg2+ {[%emt 0:00:16]} 40. Ke3 {[%emt 0:00:09]} Bxe2 {[%emt 0:01:11]} 41. Rdh1 $2 {[%emt 0:08:27] [#]} (41. Qxe2 Qxh3+ 42. Qf3) 41... Rxd8 $1 {[%emt 0:06:48][%mdl 512]} 42. Qxd8 {[%emt 0:00:59]} Bg4 {[%emt 0:00:58]} 43. R3h2 {[%emt 0:02:44]} Qf3+ {[%emt 0:00:42]} 44. Kd2 {[%emt 0:00:02]} f5 {[%emt 0:01:51][%csl Gg7][%cal Rf3c3,Bf6f5,Bf5f4][%mdl 32]} 45. Ne2 {[%emt 0:01:09]} f4 {[%emt 0:01:17] And now ...Qe3+ would win.} 46. Qc7 $2 {[%emt 0:01:55]} (46. Rg1 Qe3+ 47. Ke1 Bc3+ 48. Kf1 Qf3+ 49. Rf2 Qh3+ 50. Rfg2 (50. Rgg2 $2 f3 $19)) 46... Qe3+ {[%emt 0:00:47]} 47. Ke1 {[%emt 0:00:59] aiming for Rg1.} f3 {[%emt 0:01:26][%mdl 64] Pin} ({Don't blunder} 47... Bxe2 $2 48. Rxe2 Qc3+ 49. Rd2 Qc1+ 50. Ke2 (50. Rd1 $2 Qe3+ 51. Kf1 Qf3+ 52. Kg1 Qxd1+ $19) 50... Qxh1 51. Qxf4 $19) 48. Qxc4 {[%emt 0:01:10]} (48. Rg1 $142 Kh8 49. Rxg4 Bc3+ 50. Kf1 fxe2+ 51. Rxe2 Qf3+ 52. Kg1 Qxg4+ 53. Kf2) 48... fxe2 {[%emt 0:00:50]} 49. Rxe2 {[%emt 0:00:17]} Bc3+ {[%emt 0:05:50] A strong pair of Bishops.} 50. Kf1 {[%emt 0:02:13]} Bxe2+ $2 {[%emt 0:04:01]} (50... Qf3+ 51. Kg1 Qg3+ 52. Kf1 Bf5) 51. Qxe2 {[%emt 0:00:03]} Qf4+ {[%emt 0:00:44]} 52. Kg2 {[%emt 0:00:15] Strongly threatening Qc2+.} Qxb4 {[%emt 0:01:24] Weighted Error Value: White=0.62/Black=0.30} 1/2-1/2

[Event "34th GER-ch Seniors-50 2022"]
[Site "Magdeburg"]
[Date "2022.08.19"]
[Round "8.2"]
[White "Wacker, Peter"]
[Black "Reddmann, Hauke"]
[Result "*"]
[ECO "B91"]
[WhiteElo "2263"]
[BlackElo "2181"]
[Annotator "TA"]
[PlyCount "26"]
[EventDate "2022.08.12"]
[EventType "swiss"]
[EventCountry "GER"]
[SourceTitle "playchess.com"]
[Source "ChessBase"]
[SourceQuality "1"]
[TimeControl "40/5400+30:1800+30"]

{[%evp 15,26,33,39,25,16,0,22,10,24,-56,-43,-52,-57]} 1. e4 {[%emt 0:00:05]} c5 {[%emt 0:00:03]} 2. Nf3 {[%emt 0:00:05]} d6 {[%emt 0:00:04]} 3. d4 {[%emt 1:31:50]} cxd4 {[%emt 0:00:03]} 4. Nxd4 {[%emt 0:00:04]} Nf6 {[%emt 0:00:04]} 5. Nc3 {[%emt 0:00:08]} a6 {[%emt 0:00:03]} 6. g3 {[%emt 0:00:15]} Nc6 {[%emt 0:02:36]} 7. Bg2 {[%emt 0:01:00]} Bd7 {[%emt 0:00:05]} 8. O-O {[%emt 0:00:46]} g6 {[%emt 0:00:35]} 9. Nde2 {[%emt 0:05:18] B91: Sicilian Najdorf: 6 g3.} (9. Nd5 {seems wilder.} Bg7 10. Bg5 Ng4 11. c3) 9... Bg7 {[%emt 0:00:36]} 10. b3 {[%emt 0:00:35]} O-O {[%emt 0:01:03]} 11. Bb2 {[%emt 0:00:25]} Qa5 {[%emt 0:03:46] [#]} 12. Nd5 $146 {[%emt 0:04:12]} (12. Rb1 $11) ({Predecessor:} 12. Qd2 Rfd8 13. Rad1 Rac8 14. h3 b5 15. a3 Be8 16. f4 Qb6+ 17. Kh2 a5 18. Ba1 {½-½ (32) Fernandez Aguado,J-Sunye Neto,J (2470) Barcelona 1984}) 12... Nxd5 $1 $15 {[%emt 0:02:03]} 13. Bxg7 {[%emt 0:04:40]} Ne3 $1 {[%emt 0:00:51] Black took control after the opening.  Weighted Error Value: White=0.38/Black=0.07 (flawless)} *

[Event "34th GER-ch Seniors-50 2022"]
[Site "Magdeburg"]
[Date "2022.08.19"]
[Round "8.3"]
[White "Pirrot, Dieter"]
[Black "Matzat, Andre"]
[Result "0-1"]
[ECO "D00"]
[WhiteElo "2328"]
[BlackElo "2034"]
[Annotator "TA"]
[PlyCount "88"]
[EventDate "2022.08.12"]
[EventType "swiss"]
[EventCountry "GER"]
[SourceTitle "playchess.com"]
[Source "ChessBase"]
[SourceQuality "1"]
[TimeControl "40/5400+30:1800+30"]

{[%evp 9,88,-45,-41,-47,-48,-39,-35,-140,-18,-7,-26,-15,-11,-10,-9,-31,0,0,22,0,25,29,30,31,20,37,67,46,21,-14,-16,-19,-8,-59,133,0,0,0,0,0,58,22,21,13,35,0,0,-37,88,72,86,80,73,60,79,57,103,103,122,84,91,27,13,-22,-12,-197,-71,-77,-90,-85,210,215,224,213,265,287,366,354,839,-29998,-29999]} 1. d4 {[%emt 0:00:03]} Nf6 {[%emt 0:00:09]} 2. Bg5 {[%emt 0:00:11]} d5 {[%emt 0:01:08]} 3. Nd2 {[%emt 0:00:43]} Bf5 {[%emt 0:10:55]} 4. f3 {[%emt 0:11:01] [#]} c5 $146 {[%emt 0:03:16]} ({Predecessor:} 4... Nc6 5. e3 Bg6 6. c4 e6 7. Qb3 Rb8 8. cxd5 Qxd5 9. Bxf6 Qxb3 10. axb3 gxf6 11. Bb5 Kd7 {1-0 (51) Hoffmann,A (2185)-Gaboyan,S (2215) Chess.com INT 2021}) 5. Bxf6 {[%emt 0:10:01]} gxf6 {[%emt 0:02:57]} 6. e4 {[%emt 0:01:28] D00: 1 d4 d5: Unusual lines.} Bg6 {[%emt 0:05:25]} 7. Bb5+ {[%emt 0:06:05]} Nc6 {[%emt 0:05:45]} 8. c4 {[%emt 0:05:13]} (8. Ne2 $15) 8... a6 {[%emt 0:12:37]} (8... dxe4 $17 {Threatens to win with ...e3.} 9. d5 e3) 9. Bxc6+ $11 {[%emt 0:14:15]} bxc6 {[%emt 0:00:11]} 10. Qa4 {[%emt 0:00:22]} Qd7 {[%emt 0:01:11]} 11. dxc5 {[%emt 0:11:44]} dxe4 {[%emt 0:07:54]} 12. Rd1 {[%emt 0:01:08]} Qe6 {[%emt 0:00:50]} (12... exf3 $15 13. Ngxf3 Bh6) 13. Ne2 {[%emt 0:02:03][%cal Bg1e2,Be2g3,Bg3f5][%mdl 32]} exf3 {[%emt 0:15:27]} 14. Nxf3 {[%emt 0:00:08][%cal Oe1g1]} Bh6 {[%emt 0:00:19]} 15. Nfd4 {[%emt 0:09:38][%csl LRc6,LRe6]} Qe4 {[%emt 0:00:48]} 16. O-O $1 {[%emt 0:00:42] Strongly threatening Ng3.} (16. Qxc6+ Qxc6 17. Nxc6 Be4 $15) 16... O-O $1 {[%emt 0:04:36]} 17. Kh1 {[%emt 0:00:21]} Rfc8 {[%emt 0:11:23]} 18. Ng3 {[%emt 0:03:40] Pair of Knights!} (18. Nc3 $5 {[%cal Rc3e4]} Qg4 19. Nxc6 $14) 18... Qe5 {[%emt 0:02:16]} 19. Ngf5 {[%emt 0:00:54]} Bf8 {[%emt 0:00:11]} 20. b4 {[%emt 0:04:53]} (20. Nxc6 Qxc5 21. Ncd4 Qxc4 $17) 20... a5 {[%emt 0:00:33]} 21. Nxc6 {[%emt 0:02:52]} (21. bxa5 $11 Qxc5 22. Nb3) 21... Qe6 $2 {[%emt 0:00:29] [#]} (21... Qe4 $15 {keeps the upper hand.} 22. Ncxe7+ Bxe7) 22. b5 $1 {[%emt 0:02:26]} Bxf5 {[%emt 0:03:42]} 23. Nd4 $1 $36 {[%emt 0:00:09][%mdl 2048] White has some pressure.} Qe4 {[%emt 0:00:47]} 24. Rxf5 {[%emt 0:03:49]} e6 {[%emt 0:00:22]} (24... Rd8 $11 25. Rd5 e6 26. Rxd8 Rxd8) 25. Rff1 {[%emt 0:01:55]} (25. Rxf6 Bg7 26. Rff1 Bxd4 $15) 25... Rxc5 {[%emt 0:00:53]} (25... Bxc5 26. Nc6 $16) 26. Rfe1 {[%emt 0:00:58]} Qf4 {[%emt 0:01:30]} 27. Rf1 {[%emt 0:01:15]} Qe4 {[%emt 0:00:29]} 28. Qb3 {[%emt 0:00:22]} a4 {[%emt 0:00:52]} (28... Rd8 $15 {stays ahead.} 29. Rfe1 Qg4) 29. Qg3+ $16 {[%emt 0:06:41]} Rg5 {[%emt 0:01:39]} 30. Qf3 {[%emt 0:00:00]} Qxf3 {[%emt 0:01:51]} 31. gxf3 {[%emt 0:00:00][%cal Bg2f3,Bf3f4][%mdl 32]} ({Of course not} 31. Nxf3 Rg4 $11) 31... Bc5 {[%emt 0:01:13]} 32. Nc6 {[%emt 0:00:00] Inhibits Re5.} a3 {[%emt 0:02:08]} (32... Rh5 $14) 33. f4 {[%emt 0:00:00]} Rg4 {[%emt 0:00:31]} 34. Rb1 {[%emt 0:00:00]} Ra4 {[%emt 0:01:30]} 35. h3 {[%emt 0:01:09]} ({Better is} 35. b6 $16 {Black must now prevent b7.} Bxb6 36. h3 (36. Rxb6 Rxc4 37. f5 Rc2 $11)) 35... Rh4 $1 $11 {[%emt 0:01:02]} 36. Kg2 {[%emt 0:00:18]} Rxc4 {[%emt 0:00:30]} 37. Kg3 $2 {[%emt 0:00:11]} (37. b6 $1 $11 {and White has nothing to worry.} Bd6 38. Rbc1 Rhxf4 39. Rfd1 (39. b7 Rxf1 40. Rxc4 Rb1 $17) 39... Rxc1 40. Rxc1) 37... Rh6 {[%emt 0:00:16]} (37... Rh5 $1 $19 {and Black stays clearly on top. Hoping for ...Rc3+.} 38. Rfc1 Rxc1 39. Rxc1 Rd5) 38. Rfc1 {[%emt 0:00:16] Prevents Rc3+.} Rxc1 {[%emt 0:01:12]} (38... Rg6+ $2 39. Kf3 Rxc1 40. Rxc1 $18) 39. Rxc1 $17 {[%emt 0:00:07][%mdl 4096] Endgame KRB-KRN} Bb6 {[%emt 0:00:21][%mdl 8192] [#]} (39... Rh5 $1 $17 40. Rc3 Bb6) 40. Ne7+ $1 $18 {[%emt 0:01:41][%mdl 1024] White has strong compensation.} Kf8 {[%emt 0:00:13] [#]} 41. Nc8 {[%emt 0:30:13]} Bd4 {[%emt 0:05:16]} 42. b6 {[%emt 0:00:00] aiming for b7.} e5 {[%emt 0:01:29]} 43. f5 {[%emt 0:00:00] And now b7 would win.} e4 $2 {[%emt 0:00:14]} (43... Bxb6 44. Nxb6 Rh5) 44. Kg4 $4 {[%emt 0:00:00][%mdl 8192]} (44. b7 $18) 44... Bf2 {[%emt 0:00:30] Weighted Error Value: White=0.45/Black=0.48} 0-1

[Event "34th GER-ch Seniors-50 2022"]
[Site "Magdeburg"]
[Date "2022.08.19"]
[Round "8.4"]
[White "Brandes, Stephan"]
[Black "Heck, Norbert"]
[Result "1/2-1/2"]
[ECO "D95"]
[WhiteElo "2123"]
[BlackElo "2249"]
[Annotator "TA"]
[PlyCount "80"]
[EventDate "2022.08.12"]
[EventType "swiss"]
[EventCountry "GER"]
[SourceTitle "playchess.com"]
[Source "ChessBase"]
[SourceQuality "1"]
[TimeControl "40/5400+30:1800+30"]

{[%evp 11,80,0,20,9,17,18,14,18,27,23,26,27,55,58,58,62,73,17,18,28,27,22,28,36,19,16,14,12,35,23,93,104,117,107,110,-179,89,103,116,52,32,36,35,56,176,78,189,-181,-180,-229,-244,-216,-181,-304,-98,-102,-83,-133,0,0,0,0,50,42,93,43,60,60,60,43,43]} 1. Nf3 {[%emt 0:00:05]} Nf6 {[%emt 0:00:08]} 2. e3 {[%emt 0:00:46]} g6 {[%emt 0:00:21]} 3. d4 {[%emt 1:31:09]} Bg7 {[%emt 0:00:08]} 4. c4 {[%emt 0:00:00]} O-O {[%emt 0:00:15]} 5. Nc3 {[%emt 0:00:00]} d5 {[%emt 0:00:16]} 6. Qb3 {[%emt 0:00:00]} c6 {[%emt 0:00:37]} 7. Bd3 {[%emt 0:00:00] D95: Grünfeld: 4 Nf3 Bg7 5 e3 0-0 6 Qb3.} Qb6 {[%emt 0:06:36]} 8. Qxb6 {[%emt 0:00:00]} axb6 {[%emt 0:00:10]} 9. cxd5 {[%emt 0:00:00] The position is equal.} cxd5 {[%emt 0:00:43]} 10. Bd2 {[%emt 0:00:00]} Nc6 {[%emt 0:00:33]} 11. O-O {[%emt 0:00:00] [#]} Nb4 $146 {[%emt 0:08:32]} ({Predecessor:} 11... Bf5 12. Bxf5 gxf5 13. Rfc1 Rfc8 14. Nb5 Ne4 15. Be1 e6 16. Nd2 {½-½ (16) Kuenstler,C (2005)-Isakson,A (1926) Oberhof 2010}) 12. Bb5 {[%emt 0:00:00]} Bf5 {[%emt 0:01:55]} 13. Ne5 {[%emt 0:00:00] Prevents Bd3.} Na6 {[%emt 0:06:12]} 14. g4 {[%emt 0:00:00]} (14. Be2 $16) 14... Nxg4 $11 {[%emt 0:03:57]} 15. Nxg4 {[%emt 0:00:00]} Bxg4 {[%emt 0:00:07]} 16. Nxd5 {[%emt 0:00:00][%cal Bc3d5,Bd5b6,Bb6c8,Bc8e7][%mdl 32]} e5 {[%emt 0:01:15]} 17. Nxb6 {[%emt 0:00:00]} Rad8 {[%emt 0:00:49]} 18. d5 {[%emt 0:00:00]} Rd6 {[%emt 0:00:41]} 19. Ba5 {[%emt 0:00:00]} e4 {[%emt 0:01:25]} (19... Nc7 $5 {[%cal Rc7b5]} 20. Bc4 e4 $11) 20. h3 {[%emt 0:00:00]} Bf3 {[%emt 0:01:03]} (20... Bxh3 $11 21. Rfd1 Rf6) 21. Rac1 {[%emt 0:00:00] Hoping for Nc8.} g5 {[%emt 0:01:50]} 22. Nc8 $36 {[%emt 0:00:00][%mdl 2048] White is in control.} Rh6 {[%emt 0:04:50]} 23. Ne7+ {[%emt 0:00:00]} Kh8 {[%emt 0:00:09]} 24. Bd7 {[%emt 0:00:00] White is more active.} Bxb2 {[%emt 0:10:59] [#] White must now prevent ...Ba3.} 25. Bc3+ {[%emt 0:00:00]} (25. Rc8 $1 $16 {[%cal Rc8f8]} Rxc8 26. Bxc8) 25... Bxc3 $14 {[%emt 0:00:09]} 26. Rxc3 {[%emt 0:00:00] Rb1 is the strong threat.} Rd6 $1 {[%emt 0:09:44]} 27. Rc8 {[%emt 0:00:00]} Rxd7 {[%emt 0:01:58]} 28. Rxf8+ $18 {[%emt 0:00:00]} Kg7 {[%emt 0:00:07]} 29. Rc8 {[%emt 0:00:02][%mdl 8192]} Rxe7 $19 {[%emt 0:00:18]} 30. Rd8 {[%emt 0:01:06]} (30. Rb1 $142) 30... Nc5 {[%emt 0:05:48]} 31. Rc1 {[%emt 0:04:06]} Nd3 {[%emt 0:06:01]} 32. d6 {[%emt 0:01:27]} (32. Rcc8 {was worth a try.}) 32... Re6 $2 {[%emt 0:00:55]} (32... Re5 $19 {is more deadly.} 33. Rb1 Rd5) 33. Rcc8 $17 {[%emt 0:05:50]} Ne5 {[%emt 0:07:09]} 34. d7 {[%emt 0:00:54] [#]} (34. Rc5 $142) 34... Nxd7 $1 {[%emt 0:00:22][%mdl 512]} 35. Rxd7 {[%emt 0:00:01][%mdl 4096] Endgame And now Rc5 would win. KRR-KRB} Rb6 {[%emt 0:01:57] ( -> ...Rb1+)} 36. Rc1 {[%emt 0:00:23] Prevents Rb1.} Rb2 {[%emt 0:00:56]} (36... Rh6 $1 $11 37. Kh2 (37. Rxb7 {gets mated.} Rxh3) 37... Bg4 38. Rxb7 Rxh3+ 39. Kg2 Rh4) 37. a4 {[%emt 0:01:00]} h5 {[%emt 0:00:42]} ({Black should try} 37... Ra2 $1 $14) 38. Kf1 {[%emt 0:00:56]} (38. Ra1 $16) 38... h4 {[%emt 0:01:24] White is slightly better.} 39. Rd5 {[%emt 0:00:46]} Kg6 {[%emt 0:00:34]} 40. Kg1 {[%emt 0:00:25]} Ra2 {[%emt 0:05:26] White happily takes the draw.  Weighted Error Value: White=0.46/Black=0.26 (precise)} 1/2-1/2

[Event "34th GER-ch Seniors-50 2022"]
[Site "Magdeburg"]
[Date "2022.08.19"]
[Round "8.5"]
[White "Lindam, Ingo"]
[Black "Schatz, Christian"]
[Result "1/2-1/2"]
[ECO "E62"]
[WhiteElo "2130"]
[BlackElo "2137"]
[Annotator "TA"]
[PlyCount "34"]
[EventDate "2022.08.12"]
[EventType "swiss"]
[EventCountry "GER"]
[SourceTitle "playchess.com"]
[Source "ChessBase"]
[SourceQuality "1"]
[TimeControl "40/5400+30:1800+30"]

{[%evp 17,20,48,44,-26,-27]} 1. d4 {[%emt 0:02:12]} d6 {[%emt 0:00:11]} 2. Nf3 {[%emt 0:02:05]} Nf6 {[%emt 0:00:33]} 3. g3 {[%emt 0:00:16]} g6 {[%emt 0:00:29]} 4. Bg2 {[%emt 0:00:22]} Bg7 {[%emt 0:00:08]} 5. c4 {[%emt 0:00:36]} O-O {[%emt 0:00:28]} 6. O-O {[%emt 0:00:02]} Nc6 {[%emt 0:00:31]} 7. Nc3 {[%emt 0:00:09]} Bg4 {[%emt 0:01:54]} 8. d5 {[%emt 0:00:21]} Na5 {[%emt 0:01:06]} 9. Nd2 {[%emt 0:00:13]} c5 {[%emt 0:00:13]} 10. dxc6 {[%emt 0:08:52] E62: King's Indian: Fianchetto: 6...c6 and Panno Variation (6...Nc6) without ...a6.} (10. Qc2 $14) 10... Nxc6 {[%emt 0:00:53] [#] A rather calm draw.} {Predecessor:} 11. Nde4 $146 Nxe4 12. Bxe4 Rc8 13. Bd2 a6 14. Rc1 Bh3 15. Bg2 Bxg2 16. Kxg2 Ne5 17. b3 Qd7 {1-0 (66) Saraci,N (2424)-Banawa,J (2404) Chess.com INT 2021} 1/2-1/2